Workbook

Sheet Suppl Figure 3a
A1: scratching bouts per 2 min for α-methyl 5HT
A2: conc in μg | B2: 0 | D2: 3 | F2: 10 | H2: 30 | J2: 60 | N2: treat: | O2: 0 | P2: 10 | Q2: 30 | R2: 60 | S2: 0 | T2: 30 | U2: 10 | V2: 60 | W2: 10 | X2: 30 | Y2: 60 | Z2: 3 | AA2: 0 | AB2: 60 | AC2: 60 | AD2: 10 | AE2: 30 | AF2: 3 | AG2: 3 | AH2: veh | AI2: veh | AJ2: veh | AK2: veh | AL2: veh | AM2: veh | AN2: veh | AO2: veh | AP2: veh | AR2: veh | AV2: 3 | AZ2: 10 | BD2: 30 | BH2: 60
A3: time | B3: mean | C3: SEM | D3: mean | E3: SEM | F3: mean | G3: SEM | H3: mean | I3: SEM | J3: mean | K3: SEM | N3: 0 | O3: 0 | P3: 0 | Q3: 0 | R3: 0 | S3: 0 | T3: 0 | U3: 0 | V3: 0 | W3: 0 | X3: 0 | Y3: 0 | Z3: 0 | AA3: 0 | AB3: 0 | AC3: 0 | AD3: 0 | AE3: 0 | AF3: 0 | AG3: 0 | AH3: 0 | AI3: 0 | AJ3: 0 | AK3: 0 | AL3: 0 | AM3: 0 | AN3: 0 | AO3: 0 | AP3: 0 | AR3: avg | AS3: SD | AT3: n | AU3: SEM | AV3: avg | AW3: SD | AX3: n | AY3: SEM | AZ3: avg | BA3: SD | BB3: n | BC3: SEM | BD3: avg | BE3: SD | BF3: n | BG3: SEM | BH3: avg | BI3: SD | BJ3: n | BK3: SEM
A4: =AQ4 -> 0 | B4: =AR4 -> 0 | C4: =AU4 -> 0 | D4: =AV4 -> 0 | E4: =AY4 -> 0 | F4: =AZ4 -> 0 | G4: =BC4 -> 0 | H4: =BD4 -> 0 | I4: =BG4 -> 0 | J4: =BH4 -> 0 | K4: =BK4 -> 0 | N4: 1 | O4: 0 | P4: 0 | Q4: 0 | R4: 0 | S4: 0 | T4: 2 | U4: 0 | V4: 0 | W4: 0 | X4: 0 | Y4: 0 | Z4: 0 | AA4: 0 | AB4: 0 | AC4: 0 | AD4: 0 | AE4: 0 | AF4: 0 | AG4: 0 | AH4: 0 | AI4: 0 | AJ4: 0 | AK4: 0 | AL4: 0 | AM4: 0 | AN4: 0 | AO4: 0 | AP4: 0 | AQ4: =N3 -> 0 | AR4: =AVERAGE(O3,S3,AA3,AH3,AI3,AJ3,AK3,AL3,AM3,AN3,AO3,AP3) -> 0 | AS4: =STDEV(O3,S3,AA3,AH3,AI3,AJ3,AK3,AL3,AM3,AN3,AO3,AP3) -> 0 | AT4: =COUNT(O3,S3,AA3,AH3,AI3,AJ3,AK3,AL3,AM3,AN3,AO3,AP3) -> 12 | AU4: =AS4/SQRT(AT4) -> 0 | AV4: =AVERAGE(Z3,AF3,AG3) -> 0 | AW4: =STDEV(Z3,AF3,AG3) -> 0 | AX4: =COUNT(Z3,AF3,AG3) -> 3 | AY4: =AW4/SQRT(AX4) -> 0 | AZ4: =AVERAGE(P3,U3,W3,AD3) -> 0 | BA4: =STDEV(P3,U3,W3,AD3) -> 0 | BB4: =COUNT(P3,U3,W3,AD3) -> 4 | BC4: =BA4/SQRT(BB4) -> 0 | BD4: =AVERAGE(Q3,T3,X3,AE3) -> 0 | BE4: =STDEV(Q3,T3,X3,AE3) -> 0 | BF4: =COUNT(Q3,T3,X3,AE3) -> 4 | BG4: =BE4/SQRT(BF4) -> 0 | BH4: =AVERAGE(R3,V3,Y3,AB3,AC3) -> 0 | BI4: =STDEV(R3,V3,Y3,AB3,AC3) -> 0 | BJ4: =COUNT(R3,V3,Y3,AB3,AC3) -> 5 | BK4: =BI4/SQRT(BJ4) -> 0
A5: =AQ7 -> 1.5 | B5: =AR7 -> 0 | C5: =AU7 -> 0 | D5: =AV7 -> 0 | E5: =AY7 -> 0 | F5: =AZ7 -> 0.75 | G5: =BC7 -> 0.4787135539 | H5: =BD7 -> 2.75 | I5: =BG7 -> 1.493039406 | J5: =BH7 -> 1.4 | K5: =BK7 -> 0.9797958971 | N5: 2 | O5: 0 | P5: 0 | Q5: 2 | R5: 0 | S5: 0 | T5: 0 | U5: 0 | V5: 2 | W5: 2 | X5: 7 | Y5: 0 | Z5: 0 | AA5: 0 | AB5: 5 | AC5: 0 | AD5: 1 | AE5: 0 | AF5: 0 | AG5: 0 | AH5: 0 | AI5: 0 | AJ5: 0 | AK5: 0 | AL5: 0 | AM5: 0 | AN5: 0 | AO5: 0 | AP5: 0
A6: =AQ10 -> 3.5 | B6: =AR10 -> 1.818181818 | C6: =AU10 -> 1.393609974 | D6: =AV10 -> 1.666666667 | E6: =AY10 -> 1.666666667 | F6: =AZ10 -> 10.75 | G6: =BC10 -> 3.94493346 | H6: =BD10 -> 8.25 | I6: =BG10 -> 5.265849093 | J6: =BH10 -> 6.6 | K6: =BK10 -> 2.942787794 | M6: avg 2 min | N6: =AVERAGE(N4:N5) -> 1.5 | O6: sum( | P6: =SUM(P4:P5) -> 0 | Q6: =SUM(Q4:Q5) -> 2 | R6: 0 | S6: 0 | T6: 2 | U6: 0 | V6: 2 | W6: 2 | X6: 7 | Y6: 0 | Z6: 0 | AA6: 0 | AB6: 5 | AC6: 0 | AD6: 1 | AE6: 0 | AF6: 0 | AG6: 0 | AH6: 0 | AI6: 0 | AJ6: 0 | AK6: 0 | AL6: 0 | AM6: 0 | AN6: 0 | AO6: 0 | AP6: 0
A7: =AQ13 -> 5.5 | B7: =AR13 -> 0 | C7: =AU13 -> 0 | D7: =AV13 -> 6.666666667 | E7: =AY13 -> 3.75647589 | F7: =AZ13 -> 19 | G7: =BC13 -> 6.284902545 | H7: =BD13 -> 12.25 | I7: =BG13 -> 5.072392598 | J7: =BH13 -> 11 | K7: =BK13 -> 2.469817807 | N7: 3 | O7: 0 | P7: 2 | Q7: 2 | R7: 6 | S7: 0 | T7: 2 | U7: 0 | V7: 0 | W7: 6 | X7: 8 | Y7: 0 | Z7: 0 | AA7: 0 | AB7: 9 | AC7: 0 | AD7: 5 | AE7: 0 | AF7: 0 | AG7: 0 | AH7: 0 | AI7: 0 | AJ7: 0 | AK7: 0 | AL7: 0 | AM7: 0 | AN7: 0 | AO7: 0 | AP7: 0 | AQ7: =N6 -> 1.5 | AR7: =AVERAGE(O6,S6,AA6,AH6,AI6,AJ6,AK6,AL6,AM6,AN6,AO6,AP6) -> 0 | AS7: =STDEV(O6,S6,AA6,AH6,AI6,AJ6,AK6,AL6,AM6,AN6,AO6,AP6) -> 0 | AT7: =COUNT(O6,S6,AA6,AH6,AI6,AJ6,AK6,AL6,AM6,AN6,AO6,AP6) -> 11 | AU7: =AS7/SQRT(AT7) -> 0 | AV7: =AVERAGE(Z6,AF6,AG6) -> 0 | AW7: =STDEV(Z6,AF6,AG6) -> 0 | AX7: =COUNT(Z6,AF6,AG6) -> 3 | AY7: =AW7/SQRT(AX7) -> 0 | AZ7: =AVERAGE(P6,U6,W6,AD6) -> 0.75 | BA7: =STDEV(P6,U6,W6,AD6) -> 0.9574271078 | BB7: =COUNT(P6,U6,W6,AD6) -> 4 | BC7: =BA7/SQRT(BB7) -> 0.4787135539 | BD7: =AVERAGE(Q6,T6,X6,AE6) -> 2.75 | BE7: =STDEV(Q6,T6,X6,AE6) -> 2.986078811 | BF7: =COUNT(Q6,T6,X6,AE6) -> 4 | BG7: =BE7/SQRT(BF7) -> 1.493039406 | BH7: =AVERAGE(R6,V6,Y6,AB6,AC6) -> 1.4 | BI7: =STDEV(R6,V6,Y6,AB6,AC6) -> 2.19089023 | BJ7: =COUNT(R6,V6,Y6,AB6,AC6) -> 5 | BK7: =BI7/SQRT(BJ7) -> 0.9797958971
A8: =AQ16 -> 7.5 | B8: =AR16 -> 0.5454545455 | C8: =AU16 -> 0.3899565562 | D8: =AV16 -> 8.333333333 | E8: =AY16 -> 4.176654695 | F8: =AZ16 -> 12 | G8: =BC16 -> 4.778423729 | H8: =BD16 -> 11 | I8: =BG16 -> 4.082482905 | J8: =BH16 -> 6 | K8: =BK16 -> 4.460941605 | N8: 4 | O8: 0 | P8: 5 | Q8: 1 | R8: 7 | S8: 0 | T8: 2 | U8: 2 | V8: 5 | W8: 14 | X8: 16 | Y8: 0 | Z8: 0 | AA8: 0 | AB8: 5 | AC8: 1 | AD8: 9 | AE8: 2 | AF8: 0 | AG8: 5 | AH8: 0 | AI8: 0 | AJ8: 0 | AK8: 5 | AL8: 15 | AM8: 0 | AN8: 0 | AO8: 0 | AP8: 0
A9: =AQ19 -> 9.5 | B9: =AR19 -> 0.4545454545 | C9: =AU19 -> 0.2816715161 | D9: =AV19 -> 6 | E9: =AY19 -> 3 | F9: =AZ19 -> 11.75 | G9: =BC19 -> 4.269562819 | H9: =BD19 -> 13 | I9: =BG19 -> 4.898979486 | J9: =BH19 -> 4.6 | K9: =BK19 -> 3.059411708 | M9: avg 2 min | N9: =AVERAGE(N7:N8) -> 3.5 | P9: =SUM(P7:P8) -> 7 | Q9: =SUM(Q7:Q8) -> 3 | R9: 13 | S9: 0 | T9: 4 | U9: 2 | V9: 5 | W9: 20 | X9: 24 | Y9: 0 | Z9: 0 | AA9: 0 | AB9: 14 | AC9: 1 | AD9: 14 | AE9: 2 | AF9: 0 | AG9: 5 | AH9: 0 | AI9: 0 | AJ9: 0 | AK9: 5 | AL9: 15 | AM9: 0 | AN9: 0 | AO9: 0 | AP9: 0
A10: =AQ22 -> 11.5 | B10: =AR22 -> 0.09090909091 | C10: =AU22 -> 0.09090909091 | D10: =AV22 -> 2.666666667 | E10: =AY22 -> 2.666666667 | F10: =AZ22 -> 5.25 | G10: =BC22 -> 5.25 | H10: =BD22 -> 4 | I10: =BG22 -> 2.34520788 | J10: =BH22 -> 2.6 | K10: =BK22 -> 2.13541565 | N10: 5 | O10: 0 | P10: 2 | Q10: 0 | R10: 13 | S10: 0 | T10: 0 | U10: 11 | V10: 4 | W10: 25 | X10: 14 | Y10: 7 | Z10: 0 | AA10: 0 | AB10: 9 | AC10: 14 | AD10: 5 | AE10: 13 | AF10: 7 | AG10: 5 | AH10: 0 | AI10: 0 | AJ10: 0 | AK10: 0 | AL10: 0 | AM10: 0 | AN10: 0 | AO10: 0 | AP10: 0 | AQ10: =N9 -> 3.5 | AR10: =AVERAGE(O9,S9,AA9,AH9,AI9,AJ9,AK9,AL9,AM9,AN9,AO9,AP9) -> 1.818181818 | AS10: =STDEV(O9,S9,AA9,AH9,AI9,AJ9,AK9,AL9,AM9,AN9,AO9,AP9) -> 4.622081389 | AT10: =COUNT(O9,S9,AA9,AH9,AI9,AJ9,AK9,AL9,AM9,AN9,AO9,AP9) -> 11 | AU10: =AS10/SQRT(AT10) -> 1.393609974 | AV10: =AVERAGE(Z9,AF9,AG9) -> 1.666666667 | AW10: =STDEV(Z9,AF9,AG9) -> 2.886751346 | AX10: =COUNT(Z9,AF9,AG9) -> 3 | AY10: =AW10/SQRT(AX10) -> 1.666666667 | AZ10: =AVERAGE(P9,U9,W9,AD9) -> 10.75 | BA10: =STDEV(P9,U9,W9,AD9) -> 7.889866919 | BB10: =COUNT(P9,U9,W9,AD9) -> 4 | BC10: =BA10/SQRT(BB10) -> 3.94493346 | BD10: =AVERAGE(Q9,T9,X9,AE9) -> 8.25 | BE10: =STDEV(Q9,T9,X9,AE9) -> 10.53169819 | BF10: =COUNT(Q9,T9,X9,AE9) -> 4 | BG10: =BE10/SQRT(BF10) -> 5.265849093 | BH10: =AVERAGE(R9,V9,Y9,AB9,AC9) -> 6.6 | BI10: =STDEV(R9,V9,Y9,AB9,AC9) -> 6.580273551 | BJ10: =COUNT(R9,V9,Y9,AB9,AC9) -> 5 | BK10: =BI10/SQRT(BJ10) -> 2.942787794
A11: =AQ25 -> 13.5 | B11: =AR25 -> 1.454545455 | C11: =AU25 -> 0.845992009 | D11: =AV25 -> 4.666666667 | E11: =AY25 -> 3.282952601 | F11: =AZ25 -> 1 | G11: =BC25 -> 1 | H11: =BD25 -> 0.25 | I11: =BG25 -> 0.25 | J11: =BH25 -> 3 | K11: =BK25 -> 2.144761059 | N11: 6 | O11: 0 | P11: 6 | Q11: 0 | R11: 0 | S11: 0 | T11: 8 | U11: 6 | V11: 0 | W11: 12 | X11: 8 | Y11: 0 | Z11: 0 | AA11: 0 | AB11: 4 | AC11: 4 | AD11: 9 | AE11: 6 | AF11: 0 | AG11: 8 | AH11: 0 | AI11: 0 | AJ11: 0 | AK11: 0 | AL11: 0 | AM11: 0 | AN11: 0 | AO11: 0 | AP11: 0
A12: =AQ28 -> 15.5 | B12: =AR28 -> 0.8181818182 | C12: =AU28 -> 0.8181818182 | D12: =AV28 -> 1.666666667 | E12: =AY28 -> 1.666666667 | F12: =AZ28 -> 4.5 | G12: =BC28 -> 4.5 | H12: =BD28 -> 1 | I12: =BG28 -> 1 | J12: =BH28 -> 2.6 | K12: =BK28 -> 1.53622915 | M12: avg 2 min | N12: =AVERAGE(N10:N11) -> 5.5 | P12: =SUM(P10:P11) -> 8 | Q12: =SUM(Q10:Q11) -> 0 | R12: 13 | S12: 0 | T12: 8 | U12: 17 | V12: 4 | W12: 37 | X12: 22 | Y12: 7 | Z12: 0 | AA12: 0 | AB12: 13 | AC12: 18 | AD12: 14 | AE12: 19 | AF12: 7 | AG12: 13 | AH12: 0 | AI12: 0 | AJ12: 0 | AK12: 0 | AL12: 0 | AM12: 0 | AN12: 0 | AO12: 0 | AP12: 0
A13: =AQ31 -> 17.5 | B13: =AR31 -> 0 | C13: =AU31 -> 0 | D13: =AV31 -> 0 | E13: =AY31 -> 0 | F13: =AZ31 -> 2.5 | G13: =BC31 -> 2.5 | H13: =BD31 -> 0 | I13: =BG31 -> 0 | J13: =BH31 -> 2.2 | K13: =BK31 -> 2.2 | N13: 7 | O13: 0 | P13: 13 | Q13: 11 | R13: 16 | S13: 0 | T13: 11 | U13: 0 | V13: 0 | W13: 3 | X13: 8 | Y13: 5 | Z13: 0 | AA13: 0 | AB13: 0 | AC13: 0 | AD13: 15 | AE13: 0 | AF13: 0 | AG13: 8 | AH13: 0 | AI13: 0 | AJ13: 0 | AK13: 0 | AL13: 0 | AM13: 0 | AN13: 4 | AO13: 2 | AP13: 0 | AQ13: =N12 -> 5.5 | AR13: =AVERAGE(O12,S12,AA12,AH12,AI12,AJ12,AK12,AL12,AM12,AN12,AO12,AP12) -> 0 | AS13: =STDEV(O12,S12,AA12,AH12,AI12,AJ12,AK12,AL12,AM12,AN12,AO12,AP12) -> 0 | AT13: =COUNT(O12,S12,AA12,AH12,AI12,AJ12,AK12,AL12,AM12,AN12,AO12,AP12) -> 11 | AU13: =AS13/SQRT(AT13) -> 0 | AV13: =AVERAGE(Z12,AF12,AG12) -> 6.666666667 | AW13: =STDEV(Z12,AF12,AG12) -> 6.506407099 | AX13: =COUNT(Z12,AF12,AG12) -> 3 | AY13: =AW13/SQRT(AX13) -> 3.75647589 | AZ13: =AVERAGE(P12,U12,W12,AD12) -> 19 | BA13: =STDEV(P12,U12,W12,AD12) -> 12.56980509 | BB13: =COUNT(P12,U12,W12,AD12) -> 4 | BC13: =BA13/SQRT(BB13) -> 6.284902545 | BD13: =AVERAGE(Q12,T12,X12,AE12) -> 12.25 | BE13: =STDEV(Q12,T12,X12,AE12) -> 10.1447852 | BF13: =COUNT(Q12,T12,X12,AE12) -> 4 | BG13: =BE13/SQRT(BF13) -> 5.072392598 | BH13: =AVERAGE(R12,V12,Y12,AB12,AC12) -> 11 | BI13: =STDEV(R12,V12,Y12,AB12,AC12) -> 5.522680509 | BJ13: =COUNT(R12,V12,Y12,AB12,AC12) -> 5 | BK13: =BI13/SQRT(BJ13) -> 2.469817807
A14: =AQ34 -> 19.5 | B14: =AR34 -> 0.6363636364 | C14: =AU34 -> 0.6363636364 | D14: =AV34 -> 0 | E14: =AY34 -> 0 | F14: =AZ34 -> 0 | G14: =BC34 -> 0 | H14: =BD34 -> 6.25 | I14: =BG34 -> 3.881043674 | J14: =BH34 -> 0.2 | K14: =BK34 -> 0.2 | N14: 8 | O14: 0 | P14: 10 | Q14: 0 | R14: 7 | S14: 0 | T14: 0 | U14: 1 | V14: 0 | W14: 5 | X14: 13 | Y14: 2 | Z14: 0 | AA14: 0 | AB14: 0 | AC14: 0 | AD14: 1 | AE14: 1 | AF14: 12 | AG14: 5 | AH14: 0 | AI14: 0 | AJ14: 0 | AK14: 0 | AL14: 0 | AM14: 0 | AN14: 0 | AO14: 0 | AP14: 0
A15: =AQ37 -> 21.5 | B15: =AR37 -> 0.9090909091 | C15: =AU37 -> 0.9090909091 | D15: =AV37 -> 0 | E15: =AY37 -> 0 | F15: =AZ37 -> 0 | G15: =BC37 -> 0 | H15: =BD37 -> 1 | I15: =BG37 -> 1 | J15: =BH37 -> 0 | K15: =BK37 -> 0 | M15: avg 2 min | N15: =AVERAGE(N13:N14) -> 7.5 | P15: =SUM(P13:P14) -> 23 | Q15: =SUM(Q13:Q14) -> 11 | R15: 23 | S15: 0 | T15: 11 | U15: 1 | V15: 0 | W15: 8 | X15: 21 | Y15: 7 | Z15: 0 | AA15: 0 | AB15: 0 | AC15: 0 | AD15: 16 | AE15: 1 | AF15: 12 | AG15: 13 | AH15: 0 | AI15: 0 | AJ15: 0 | AK15: 0 | AL15: 0 | AM15: 0 | AN15: 4 | AO15: 2 | AP15: 0
A16: =AQ40 -> 23.5 | B16: =AR40 -> 0 | C16: =AU40 -> 0 | D16: =AV40 -> 0 | E16: =AY40 -> 0 | F16: =AZ40 -> 0 | G16: =BC40 -> 0 | H16: =BD40 -> 0.5 | I16: =BG40 -> 0.5 | J16: =BH40 -> 0 | K16: =BK40 -> 0 | N16: 9 | O16: 0 | P16: 1 | Q16: 0 | R16: 0 | S16: 0 | T16: 9 | U16: 0 | V16: 11 | W16: 0 | X16: 7 | Y16: 0 | Z16: 0 | AA16: 0 | AB16: 1 | AC16: 0 | AD16: 12 | AE16: 15 | AF16: 0 | AG16: 0 | AH16: 0 | AI16: 0 | AJ16: 0 | AK16: 0 | AL16: 0 | AM16: 0 | AN16: 0 | AO16: 0 | AP16: 0 | AQ16: =N15 -> 7.5 | AR16: =AVERAGE(O15,S15,AA15,AH15,AI15,AJ15,AK15,AL15,AM15,AN15,AO15,AP15) -> 0.5454545455 | AS16: =STDEV(O15,S15,AA15,AH15,AI15,AJ15,AK15,AL15,AM15,AN15,AO15,AP15) -> 1.293339581 | AT16: =COUNT(O15,S15,AA15,AH15,AI15,AJ15,AK15,AL15,AM15,AN15,AO15,AP15) -> 11 | AU16: =AS16/SQRT(AT16) -> 0.3899565562 | AV16: =AVERAGE(Z15,AF15,AG15) -> 8.333333333 | AW16: =STDEV(Z15,AF15,AG15) -> 7.234178138 | AX16: =COUNT(Z15,AF15,AG15) -> 3 | AY16: =AW16/SQRT(AX16) -> 4.176654695 | AZ16: =AVERAGE(P15,U15,W15,AD15) -> 12 | BA16: =STDEV(P15,U15,W15,AD15) -> 9.556847458 | BB16: =COUNT(P15,U15,W15,AD15) -> 4 | BC16: =BA16/SQRT(BB16) -> 4.778423729 | BD16: =AVERAGE(Q15,T15,X15,AE15) -> 11 | BE16: =STDEV(Q15,T15,X15,AE15) -> 8.164965809 | BF16: =COUNT(Q15,T15,X15,AE15) -> 4 | BG16: =BE16/SQRT(BF16) -> 4.082482905 | BH16: =AVERAGE(R15,V15,Y15,AB15,AC15) -> 6 | BI16: =STDEV(R15,V15,Y15,AB15,AC15) -> 9.974968672 | BJ16: =COUNT(R15,V15,Y15,AB15,AC15) -> 5 | BK16: =BI16/SQRT(BJ16) -> 4.460941605
A17: =AQ43 -> 25.5 | B17: =AR43 -> 0.2727272727 | C17: =AU43 -> 0.2727272727 | D17: =AV43 -> 0 | E17: =AY43 -> 0 | F17: =AZ43 -> 0 | G17: =BC43 -> 0 | H17: =BD43 -> 2 | I17: =BG43 -> 1.683250823 | J17: =BH43 -> 0.8 | K17: =BK43 -> 0.8 | N17: 10 | O17: 0 | P17: 16 | Q17: 1 | R17: 0 | S17: 0 | T17: 12 | U17: 0 | V17: 5 | W17: 11 | X17: 2 | Y17: 6 | Z17: 9 | AA17: 0 | AB17: 0 | AC17: 0 | AD17: 7 | AE17: 6 | AF17: 0 | AG17: 9 | AH17: 1 | AI17: 0 | AJ17: 0 | AK17: 0 | AL17: 0 | AM17: 0 | AN17: 0 | AO17: 3 | AP17: 1
A18: =AQ46 -> 27.5 | B18: =AR46 -> 0.09090909091 | C18: =AU46 -> 0.09090909091 | D18: =AV46 -> 2 | E18: =AY46 -> 2 | F18: =AZ46 -> 0 | G18: =BC46 -> 0 | H18: =BD46 -> 3.5 | I18: =BG46 -> 3.5 | J18: =BH46 -> 0 | K18: =BK46 -> 0 | M18: avg 2 min | N18: =AVERAGE(N16:N17) -> 9.5 | P18: =SUM(P16:P17) -> 17 | Q18: =SUM(Q16:Q17) -> 1 | R18: 0 | S18: 0 | T18: 21 | U18: 0 | V18: 16 | W18: 11 | X18: 9 | Y18: 6 | Z18: 9 | AA18: 0 | AB18: 1 | AC18: 0 | AD18: 19 | AE18: 21 | AF18: 0 | AG18: 9 | AH18: 1 | AI18: 0 | AJ18: 0 | AK18: 0 | AL18: 0 | AM18: 0 | AN18: 0 | AO18: 3 | AP18: 1
A19: =AQ49 -> 29.5 | B19: =AR49 -> 0 | C19: =AU49 -> 0 | D19: =AV49 -> 0 | E19: =AY49 -> 0 | F19: =AZ49 -> 0.5 | G19: =BC49 -> 0.5 | H19: =BD49 -> 2.25 | I19: =BG49 -> 2.25 | J19: =BH49 -> 0 | K19: =BK49 -> 0 | N19: 11 | O19: 0 | P19: 0 | Q19: 0 | R19: 0 | S19: 0 | T19: 0 | U19: 0 | V19: 0 | W19: 0 | X19: 1 | Y19: 0 | Z19: 1 | AA19: 0 | AB19: 0 | AC19: 0 | AD19: 14 | AE19: 7 | AF19: 0 | AG19: 0 | AH19: 0 | AI19: 0 | AJ19: 0 | AK19: 0 | AL19: 0 | AM19: 0 | AN19: 0 | AO19: 0 | AP19: 0 | AQ19: =N18 -> 9.5 | AR19: =AVERAGE(O18,S18,AA18,AH18,AI18,AJ18,AK18,AL18,AM18,AN18,AO18,AP18) -> 0.4545454545 | AS19: =STDEV(O18,S18,AA18,AH18,AI18,AJ18,AK18,AL18,AM18,AN18,AO18,AP18) -> 0.934198733 | AT19: =COUNT(O18,S18,AA18,AH18,AI18,AJ18,AK18,AL18,AM18,AN18,AO18,AP18) -> 11 | AU19: =AS19/SQRT(AT19) -> 0.2816715161 | AV19: =AVERAGE(Z18,AF18,AG18) -> 6 | AW19: =STDEV(Z18,AF18,AG18) -> 5.196152423 | AX19: =COUNT(Z18,AF18,AG18) -> 3 | AY19: =AW19/SQRT(AX19) -> 3 | AZ19: =AVERAGE(P18,U18,W18,AD18) -> 11.75 | BA19: =STDEV(P18,U18,W18,AD18) -> 8.539125638 | BB19: =COUNT(P18,U18,W18,AD18) -> 4 | BC19: =BA19/SQRT(BB19) -> 4.269562819 | BD19: =AVERAGE(Q18,T18,X18,AE18) -> 13 | BE19: =STDEV(Q18,T18,X18,AE18) -> 9.797958971 | BF19: =COUNT(Q18,T18,X18,AE18) -> 4 | BG19: =BE19/SQRT(BF19) -> 4.898979486 | BH19: =AVERAGE(R18,V18,Y18,AB18,AC18) -> 4.6 | BI19: =STDEV(R18,V18,Y18,AB18,AC18) -> 6.841052551 | BJ19: =COUNT(R18,V18,Y18,AB18,AC18) -> 5 | BK19: =BI19/SQRT(BJ19) -> 3.059411708
N20: 12 | O20: 2 | P20: 0 | Q20: 0 | R20: 11 | S20: 0 | T20: 0 | U20: 0 | V20: 2 | W20: 0 | X20: 8 | Y20: 0 | Z20: 7 | AA20: 0 | AB20: 0 | AC20: 0 | AD20: 7 | AE20: 0 | AF20: 0 | AG20: 0 | AH20: 0 | AI20: 0 | AJ20: 0 | AK20: 0 | AL20: 0 | AM20: 0 | AN20: 0 | AO20: 1 | AP20: 0
M21: avg 2 min | N21: =AVERAGE(N19:N20) -> 11.5 | P21: =SUM(P19:P20) -> 0 | Q21: =SUM(Q19:Q20) -> 0 | R21: 11 | S21: 0 | T21: 0 | U21: 0 | V21: 2 | W21: 0 | X21: 9 | Y21: 0 | Z21: 8 | AA21: 0 | AB21: 0 | AC21: 0 | AD21: 21 | AE21: 7 | AF21: 0 | AG21: 0 | AH21: 0 | AI21: 0 | AJ21: 0 | AK21: 0 | AL21: 0 | AM21: 0 | AN21: 0 | AO21: 1 | AP21: 0
N22: 13 | O22: 1 | P22: 0 | Q22: 0 | R22: 0 | S22: 0 | T22: 0 | U22: 0 | V22: 5 | W22: 0 | X22: 0 | Y22: 0 | Z22: 0 | AA22: 0 | AB22: 0 | AC22: 0 | AD22: 4 | AE22: 0 | AF22: 0 | AG22: 11 | AH22: 0 | AI22: 0 | AJ22: 0 | AK22: 0 | AL22: 0 | AM22: 0 | AN22: 8 | AO22: 1 | AP22: 0 | AQ22: =N21 -> 11.5 | AR22: =AVERAGE(O21,S21,AA21,AH21,AI21,AJ21,AK21,AL21,AM21,AN21,AO21,AP21) -> 0.09090909091 | AS22: =STDEV(O21,S21,AA21,AH21,AI21,AJ21,AK21,AL21,AM21,AN21,AO21,AP21) -> 0.3015113446 | AT22: =COUNT(O21,S21,AA21,AH21,AI21,AJ21,AK21,AL21,AM21,AN21,AO21,AP21) -> 11 | AU22: =AS22/SQRT(AT22) -> 0.09090909091 | AV22: =AVERAGE(Z21,AF21,AG21) -> 2.666666667 | AW22: =STDEV(Z21,AF21,AG21) -> 4.618802154 | AX22: =COUNT(Z21,AF21,AG21) -> 3 | AY22: =AW22/SQRT(AX22) -> 2.666666667 | AZ22: =AVERAGE(P21,U21,W21,AD21) -> 5.25 | BA22: =STDEV(P21,U21,W21,AD21) -> 10.5 | BB22: =COUNT(P21,U21,W21,AD21) -> 4 | BC22: =BA22/SQRT(BB22) -> 5.25 | BD22: =AVERAGE(Q21,T21,X21,AE21) -> 4 | BE22: =STDEV(Q21,T21,X21,AE21) -> 4.69041576 | BF22: =COUNT(Q21,T21,X21,AE21) -> 4 | BG22: =BE22/SQRT(BF22) -> 2.34520788 | BH22: =AVERAGE(R21,V21,Y21,AB21,AC21) -> 2.6 | BI22: =STDEV(R21,V21,Y21,AB21,AC21) -> 4.774934555 | BJ22: =COUNT(R21,V21,Y21,AB21,AC21) -> 5 | BK22: =BI22/SQRT(BJ22) -> 2.13541565
N23: 14 | O23: 2 | P23: 0 | Q23: 0 | R23: 0 | S23: 0 | T23: 0 | U23: 0 | V23: 6 | W23: 0 | X23: 1 | Y23: 0 | Z23: 3 | AA23: 0 | AB23: 0 | AC23: 4 | AD23: 0 | AE23: 0 | AF23: 0 | AG23: 0 | AH23: 6 | AI23: 0 | AJ23: 0 | AK23: 1 | AL23: 0 | AM23: 0 | AN23: 0 | AO23: 0 | AP23: 0
M24: avg 2 min | N24: =AVERAGE(N22:N23) -> 13.5 | P24: =SUM(P22:P23) -> 0 | Q24: =SUM(Q22:Q23) -> 0 | R24: 0 | S24: 0 | T24: 0 | U24: 0 | V24: 11 | W24: 0 | X24: 1 | Y24: 0 | Z24: 3 | AA24: 0 | AB24: 0 | AC24: 4 | AD24: 4 | AE24: 0 | AF24: 0 | AG24: 11 | AH24: 6 | AI24: 0 | AJ24: 0 | AK24: 1 | AL24: 0 | AM24: 0 | AN24: 8 | AO24: 1 | AP24: 0
N25: 15 | O25: 0 | P25: 0 | Q25: 0 | R25: 0 | S25: 0 | T25: 4 | U25: 0 | V25: 0 | W25: 18 | X25: 0 | Y25: 4 | Z25: 5 | AA25: 0 | AB25: 0 | AC25: 8 | AD25: 0 | AE25: 0 | AF25: 0 | AG25: 0 | AH25: 0 | AI25: 0 | AJ25: 0 | AK25: 0 | AL25: 0 | AM25: 0 | AN25: 9 | AO25: 0 | AP25: 0 | AQ25: =N24 -> 13.5 | AR25: =AVERAGE(O24,S24,AA24,AH24,AI24,AJ24,AK24,AL24,AM24,AN24,AO24,AP24) -> 1.454545455 | AS25: =STDEV(O24,S24,AA24,AH24,AI24,AJ24,AK24,AL24,AM24,AN24,AO24,AP24) -> 2.80583807 | AT25: =COUNT(O24,S24,AA24,AH24,AI24,AJ24,AK24,AL24,AM24,AN24,AO24,AP24) -> 11 | AU25: =AS25/SQRT(AT25) -> 0.845992009 | AV25: =AVERAGE(Z24,AF24,AG24) -> 4.666666667 | AW25: =STDEV(Z24,AF24,AG24) -> 5.686240703 | AX25: =COUNT(Z24,AF24,AG24) -> 3 | AY25: =AW25/SQRT(AX25) -> 3.282952601 | AZ25: =AVERAGE(P24,U24,W24,AD24) -> 1 | BA25: =STDEV(P24,U24,W24,AD24) -> 2 | BB25: =COUNT(P24,U24,W24,AD24) -> 4 | BC25: =BA25/SQRT(BB25) -> 1 | BD25: =AVERAGE(Q24,T24,X24,AE24) -> 0.25 | BE25: =STDEV(Q24,T24,X24,AE24) -> 0.5 | BF25: =COUNT(Q24,T24,X24,AE24) -> 4 | BG25: =BE25/SQRT(BF25) -> 0.25 | BH25: =AVERAGE(R24,V24,Y24,AB24,AC24) -> 3 | BI25: =STDEV(R24,V24,Y24,AB24,AC24) -> 4.795831523 | BJ25: =COUNT(R24,V24,Y24,AB24,AC24) -> 5 | BK25: =BI25/SQRT(BJ25) -> 2.144761059
N26: 16 | O26: 0 | P26: 0 | Q26: 0 | R26: 0 | S26: 0 | T26: 0 | U26: 0 | V26: 1 | W26: 0 | X26: 0 | Y26: 0 | Z26: 0 | AA26: 0 | AB26: 0 | AC26: 0 | AD26: 0 | AE26: 0 | AF26: 0 | AG26: 0 | AH26: 0 | AI26: 0 | AJ26: 0 | AK26: 0 | AL26: 0 | AM26: 0 | AN26: 0 | AO26: 0 | AP26: 0
M27: avg 2 min | N27: =AVERAGE(N25:N26) -> 15.5 | P27: =SUM(P25:P26) -> 0 | Q27: =SUM(Q25:Q26) -> 0 | R27: 0 | S27: 0 | T27: 4 | U27: 0 | V27: 1 | W27: 18 | X27: 0 | Y27: 4 | Z27: 5 | AA27: 0 | AB27: 0 | AC27: 8 | AD27: 0 | AE27: 0 | AF27: 0 | AG27: 0 | AH27: 0 | AI27: 0 | AJ27: 0 | AK27: 0 | AL27: 0 | AM27: 0 | AN27: 9 | AO27: 0 | AP27: 0
N28: 17 | O28: 2 | P28: 0 | Q28: 0 | R28: 0 | S28: 0 | T28: 0 | U28: 0 | V28: 9 | W28: 10 | X28: 0 | Y28: 0 | Z28: 0 | AA28: 0 | AB28: 0 | AC28: 0 | AD28: 0 | AE28: 0 | AF28: 0 | AG28: 0 | AH28: 0 | AI28: 0 | AJ28: 0 | AK28: 0 | AL28: 0 | AM28: 0 | AN28: 0 | AO28: 0 | AP28: 0 | AQ28: =N27 -> 15.5 | AR28: =AVERAGE(O27,S27,AA27,AH27,AI27,AJ27,AK27,AL27,AM27,AN27,AO27,AP27) -> 0.8181818182 | AS28: =STDEV(O27,S27,AA27,AH27,AI27,AJ27,AK27,AL27,AM27,AN27,AO27,AP27) -> 2.713602101 | AT28: =COUNT(O27,S27,AA27,AH27,AI27,AJ27,AK27,AL27,AM27,AN27,AO27,AP27) -> 11 | AU28: =AS28/SQRT(AT28) -> 0.8181818182 | AV28: =AVERAGE(Z27,AF27,AG27) -> 1.666666667 | AW28: =STDEV(Z27,AF27,AG27) -> 2.886751346 | AX28: =COUNT(Z27,AF27,AG27) -> 3 | AY28: =AW28/SQRT(AX28) -> 1.666666667 | AZ28: =AVERAGE(P27,U27,W27,AD27) -> 4.5 | BA28: =STDEV(P27,U27,W27,AD27) -> 9 | BB28: =COUNT(P27,U27,W27,AD27) -> 4 | BC28: =BA28/SQRT(BB28) -> 4.5 | BD28: =AVERAGE(Q27,T27,X27,AE27) -> 1 | BE28: =STDEV(Q27,T27,X27,AE27) -> 2 | BF28: =COUNT(Q27,T27,X27,AE27) -> 4 | BG28: =BE28/SQRT(BF28) -> 1 | BH28: =AVERAGE(R27,V27,Y27,AB27,AC27) -> 2.6 | BI28: =STDEV(R27,V27,Y27,AB27,AC27) -> 3.435112807 | BJ28: =COUNT(R27,V27,Y27,AB27,AC27) -> 5 | BK28: =BI28/SQRT(BJ28) -> 1.53622915
N29: 18 | O29: 0 | P29: 0 | Q29: 0 | R29: 0 | S29: 0 | T29: 0 | U29: 0 | V29: 2 | W29: 0 | X29: 0 | Y29: 0 | Z29: 0 | AA29: 0 | AB29: 0 | AC29: 0 | AD29: 0 | AE29: 0 | AF29: 0 | AG29: 0 | AH29: 0 | AI29: 0 | AJ29: 0 | AK29: 0 | AL29: 0 | AM29: 0 | AN29: 0 | AO29: 0 | AP29: 0
M30: avg 2 min | N30: =AVERAGE(N28:N29) -> 17.5 | P30: =SUM(P28:P29) -> 0 | Q30: =SUM(Q28:Q29) -> 0 | R30: 0 | S30: 0 | T30: 0 | U30: 0 | V30: 11 | W30: 10 | X30: 0 | Y30: 0 | Z30: 0 | AA30: 0 | AB30: 0 | AC30: 0 | AD30: 0 | AE30: 0 | AF30: 0 | AG30: 0 | AH30: 0 | AI30: 0 | AJ30: 0 | AK30: 0 | AL30: 0 | AM30: 0 | AN30: 0 | AO30: 0 | AP30: 0
N31: 19 | O31: 0 | P31: 0 | Q31: 0 | R31: 0 | S31: 0 | T31: 0 | U31: 0 | V31: 0 | W31: 0 | X31: 13 | Y31: 0 | Z31: 0 | AA31: 0 | AB31: 0 | AC31: 0 | AD31: 0 | AE31: 0 | AF31: 0 | AG31: 0 | AH31: 0 | AI31: 0 | AJ31: 0 | AK31: 0 | AL31: 0 | AM31: 0 | AN31: 0 | AO31: 0 | AP31: 0 | AQ31: =N30 -> 17.5 | AR31: =AVERAGE(O30,S30,AA30,AH30,AI30,AJ30,AK30,AL30,AM30,AN30,AO30,AP30) -> 0 | AS31: =STDEV(O30,S30,AA30,AH30,AI30,AJ30,AK30,AL30,AM30,AN30,AO30,AP30) -> 0 | AT31: =COUNT(O30,S30,AA30,AH30,AI30,AJ30,AK30,AL30,AM30,AN30,AO30,AP30) -> 11 | AU31: =AS31/SQRT(AT31) -> 0 | AV31: =AVERAGE(Z30,AF30,AG30) -> 0 | AW31: =STDEV(Z30,AF30,AG30) -> 0 | AX31: =COUNT(Z30,AF30,AG30) -> 3 | AY31: =AW31/SQRT(AX31) -> 0 | AZ31: =AVERAGE(P30,U30,W30,AD30) -> 2.5 | BA31: =STDEV(P30,U30,W30,AD30) -> 5 | BB31: =COUNT(P30,U30,W30,AD30) -> 4 | BC31: =BA31/SQRT(BB31) -> 2.5 | BD31: =AVERAGE(Q30,T30,X30,AE30) -> 0 | BE31: =STDEV(Q30,T30,X30,AE30) -> 0 | BF31: =COUNT(Q30,T30,X30,AE30) -> 4 | BG31: =BE31/SQRT(BF31) -> 0 | BH31: =AVERAGE(R30,V30,Y30,AB30,AC30) -> 2.2 | BI31: =STDEV(R30,V30,Y30,AB30,AC30) -> 4.91934955 | BJ31: =COUNT(R30,V30,Y30,AB30,AC30) -> 5 | BK31: =BI31/SQRT(BJ31) -> 2.2
N32: 20 | O32: 0 | P32: 0 | Q32: 9 | R32: 1 | S32: 0 | T32: 0 | U32: 0 | V32: 0 | W32: 0 | X32: 3 | Y32: 0 | Z32: 0 | AA32: 0 | AB32: 0 | AC32: 0 | AD32: 0 | AE32: 0 | AF32: 0 | AG32: 0 | AH32: 0 | AI32: 7 | AJ32: 0 | AK32: 0 | AL32: 0 | AM32: 0 | AN32: 0 | AO32: 0 | AP32: 0
M33: avg 2 min | N33: =AVERAGE(N31:N32) -> 19.5 | P33: =SUM(P31:P32) -> 0 | Q33: =SUM(Q31:Q32) -> 9 | R33: 1 | S33: 0 | T33: 0 | U33: 0 | V33: 0 | W33: 0 | X33: 16 | Y33: 0 | Z33: 0 | AA33: 0 | AB33: 0 | AC33: 0 | AD33: 0 | AE33: 0 | AF33: 0 | AG33: 0 | AH33: 0 | AI33: 7 | AJ33: 0 | AK33: 0 | AL33: 0 | AM33: 0 | AN33: 0 | AO33: 0 | AP33: 0
N34: 21 | O34: 0 | P34: 0 | Q34: 4 | R34: 0 | S34: 0 | T34: 0 | U34: 0 | V34: 0 | W34: 0 | X34: 0 | Y34: 0 | Z34: 0 | AA34: 0 | AB34: 0 | AC34: 0 | AD34: 0 | AE34: 0 | AF34: 0 | AG34: 0 | AH34: 0 | AI34: 0 | AJ34: 0 | AK34: 0 | AL34: 0 | AM34: 0 | AN34: 0 | AO34: 5 | AP34: 0 | AQ34: =N33 -> 19.5 | AR34: =AVERAGE(O33,S33,AA33,AH33,AI33,AJ33,AK33,AL33,AM33,AN33,AO33,AP33) -> 0.6363636364 | AS34: =STDEV(O33,S33,AA33,AH33,AI33,AJ33,AK33,AL33,AM33,AN33,AO33,AP33) -> 2.110579412 | AT34: =COUNT(O33,S33,AA33,AH33,AI33,AJ33,AK33,AL33,AM33,AN33,AO33,AP33) -> 11 | AU34: =AS34/SQRT(AT34) -> 0.6363636364 | AV34: =AVERAGE(Z33,AF33,AG33) -> 0 | AW34: =STDEV(Z33,AF33,AG33) -> 0 | AX34: =COUNT(Z33,AF33,AG33) -> 3 | AY34: =AW34/SQRT(AX34) -> 0 | AZ34: =AVERAGE(P33,U33,W33,AD33) -> 0 | BA34: =STDEV(P33,U33,W33,AD33) -> 0 | BB34: =COUNT(P33,U33,W33,AD33) -> 4 | BC34: =BA34/SQRT(BB34) -> 0 | BD34: =AVERAGE(Q33,T33,X33,AE33) -> 6.25 | BE34: =STDEV(Q33,T33,X33,AE33) -> 7.762087348 | BF34: =COUNT(Q33,T33,X33,AE33) -> 4 | BG34: =BE34/SQRT(BF34) -> 3.881043674 | BH34: =AVERAGE(R33,V33,Y33,AB33,AC33) -> 0.2 | BI34: =STDEV(R33,V33,Y33,AB33,AC33) -> 0.4472135955 | BJ34: =COUNT(R33,V33,Y33,AB33,AC33) -> 5 | BK34: =BI34/SQRT(BJ34) -> 0.2
N35: 22 | O35: 0 | P35: 0 | Q35: 0 | R35: 0 | S35: 0 | T35: 0 | U35: 0 | V35: 0 | W35: 0 | X35: 0 | Y35: 0 | Z35: 0 | AA35: 0 | AB35: 0 | AC35: 0 | AD35: 0 | AE35: 0 | AF35: 0 | AG35: 0 | AH35: 0 | AI35: 0 | AJ35: 0 | AK35: 0 | AL35: 0 | AM35: 0 | AN35: 0 | AO35: 5 | AP35: 0
M36: avg 2 min | N36: =AVERAGE(N34:N35) -> 21.5 | P36: =SUM(P34:P35) -> 0 | Q36: =SUM(Q34:Q35) -> 4 | R36: 0 | S36: 0 | T36: 0 | U36: 0 | V36: 0 | W36: 0 | X36: 0 | Y36: 0 | Z36: 0 | AA36: 0 | AB36: 0 | AC36: 0 | AD36: 0 | AE36: 0 | AF36: 0 | AG36: 0 | AH36: 0 | AI36: 0 | AJ36: 0 | AK36: 0 | AL36: 0 | AM36: 0 | AN36: 0 | AO36: 10 | AP36: 0
N37: 23 | O37: 0 | P37: 0 | Q37: 0 | R37: 0 | S37: 0 | T37: 0 | U37: 0 | V37: 0 | W37: 0 | X37: 0 | Y37: 0 | Z37: 0 | AA37: 0 | AB37: 0 | AC37: 0 | AD37: 0 | AE37: 0 | AF37: 0 | AG37: 0 | AH37: 0 | AI37: 0 | AJ37: 0 | AK37: 0 | AL37: 0 | AM37: 0 | AN37: 0 | AO37: 0 | AP37: 0 | AQ37: =N36 -> 21.5 | AR37: =AVERAGE(O36,S36,AA36,AH36,AI36,AJ36,AK36,AL36,AM36,AN36,AO36,AP36) -> 0.9090909091 | AS37: =STDEV(O36,S36,AA36,AH36,AI36,AJ36,AK36,AL36,AM36,AN36,AO36,AP36) -> 3.015113446 | AT37: =COUNT(O36,S36,AA36,AH36,AI36,AJ36,AK36,AL36,AM36,AN36,AO36,AP36) -> 11 | AU37: =AS37/SQRT(AT37) -> 0.9090909091 | AV37: =AVERAGE(Z36,AF36,AG36) -> 0 | AW37: =STDEV(Z36,AF36,AG36) -> 0 | AX37: =COUNT(Z36,AF36,AG36) -> 3 | AY37: =AW37/SQRT(AX37) -> 0 | AZ37: =AVERAGE(P36,U36,W36,AD36) -> 0 | BA37: =STDEV(P36,U36,W36,AD36) -> 0 | BB37: =COUNT(P36,U36,W36,AD36) -> 4 | BC37: =BA37/SQRT(BB37) -> 0 | BD37: =AVERAGE(Q36,T36,X36,AE36) -> 1 | BE37: =STDEV(Q36,T36,X36,AE36) -> 2 | BF37: =COUNT(Q36,T36,X36,AE36) -> 4 | BG37: =BE37/SQRT(BF37) -> 1 | BH37: =AVERAGE(R36,V36,Y36,AB36,AC36) -> 0 | BI37: =STDEV(R36,V36,Y36,AB36,AC36) -> 0 | BJ37: =COUNT(R36,V36,Y36,AB36,AC36) -> 5 | BK37: =BI37/SQRT(BJ37) -> 0
N38: 24 | O38: 0 | P38: 0 | Q38: 0 | R38: 0 | S38: 0 | T38: 0 | U38: 0 | V38: 0 | W38: 0 | X38: 2 | Y38: 0 | Z38: 0 | AA38: 0 | AB38: 0 | AC38: 0 | AD38: 0 | AE38: 0 | AF38: 0 | AG38: 0 | AH38: 0 | AI38: 0 | AJ38: 0 | AK38: 0 | AL38: 0 | AM38: 0 | AN38: 0 | AO38: 0 | AP38: 0
M39: avg 2 min | N39: =AVERAGE(N37:N38) -> 23.5 | P39: =SUM(P37:P38) -> 0 | Q39: =SUM(Q37:Q38) -> 0 | R39: 0 | S39: 0 | T39: 0 | U39: 0 | V39: 0 | W39: 0 | X39: 2 | Y39: 0 | Z39: 0 | AA39: 0 | AB39: 0 | AC39: 0 | AD39: 0 | AE39: 0 | AF39: 0 | AG39: 0 | AH39: 0 | AI39: 0 | AJ39: 0 | AK39: 0 | AL39: 0 | AM39: 0 | AN39: 0 | AO39: 0 | AP39: 0
N40: 25 | O40: 1 | P40: 0 | Q40: 0 | R40: 0 | S40: 0 | T40: 0 | U40: 0 | V40: 0 | W40: 0 | X40: 0 | Y40: 0 | Z40: 0 | AA40: 0 | AB40: 0 | AC40: 0 | AD40: 0 | AE40: 0 | AF40: 0 | AG40: 0 | AH40: 0 | AI40: 0 | AJ40: 0 | AK40: 0 | AL40: 0 | AM40: 0 | AN40: 0 | AO40: 0 | AP40: 0 | AQ40: =N39 -> 23.5 | AR40: =AVERAGE(O39,S39,AA39,AH39,AI39,AJ39,AK39,AL39,AM39,AN39,AO39,AP39) -> 0 | AS40: =STDEV(O39,S39,AA39,AH39,AI39,AJ39,AK39,AL39,AM39,AN39,AO39,AP39) -> 0 | AT40: =COUNT(O39,S39,AA39,AH39,AI39,AJ39,AK39,AL39,AM39,AN39,AO39,AP39) -> 11 | AU40: =AS40/SQRT(AT40) -> 0 | AV40: =AVERAGE(Z39,AF39,AG39) -> 0 | AW40: =STDEV(Z39,AF39,AG39) -> 0 | AX40: =COUNT(Z39,AF39,AG39) -> 3 | AY40: =AW40/SQRT(AX40) -> 0 | AZ40: =AVERAGE(P39,U39,W39,AD39) -> 0 | BA40: =STDEV(P39,U39,W39,AD39) -> 0 | BB40: =COUNT(P39,U39,W39,AD39) -> 4 | BC40: =BA40/SQRT(BB40) -> 0 | BD40: =AVERAGE(Q39,T39,X39,AE39) -> 0.5 | BE40: =STDEV(Q39,T39,X39,AE39) -> 1 | BF40: =COUNT(Q39,T39,X39,AE39) -> 4 | BG40: =BE40/SQRT(BF40) -> 0.5 | BH40: =AVERAGE(R39,V39,Y39,AB39,AC39) -> 0 | BI40: =STDEV(R39,V39,Y39,AB39,AC39) -> 0 | BJ40: =COUNT(R39,V39,Y39,AB39,AC39) -> 5 | BK40: =BI40/SQRT(BJ40) -> 0
N41: 26 | O41: 0 | P41: 0 | Q41: 1 | R41: 0 | S41: 0 | T41: 0 | U41: 0 | V41: 4 | W41: 0 | X41: 0 | Y41: 0 | Z41: 0 | AA41: 0 | AB41: 0 | AC41: 0 | AD41: 0 | AE41: 7 | AF41: 0 | AG41: 0 | AH41: 0 | AI41: 0 | AJ41: 0 | AK41: 0 | AL41: 0 | AM41: 3 | AN41: 0 | AO41: 0 | AP41: 0
M42: avg 2 min | N42: =AVERAGE(N40:N41) -> 25.5 | P42: =SUM(P40:P41) -> 0 | Q42: =SUM(Q40:Q41) -> 1 | R42: 0 | S42: 0 | T42: 0 | U42: 0 | V42: 4 | W42: 0 | X42: 0 | Y42: 0 | Z42: 0 | AA42: 0 | AB42: 0 | AC42: 0 | AD42: 0 | AE42: 7 | AF42: 0 | AG42: 0 | AH42: 0 | AI42: 0 | AJ42: 0 | AK42: 0 | AL42: 0 | AM42: 3 | AN42: 0 | AO42: 0 | AP42: 0
N43: 27 | O43: 0 | P43: 0 | Q43: 0 | R43: 0 | S43: 0 | T43: 0 | U43: 0 | V43: 0 | W43: 0 | X43: 0 | Y43: 0 | Z43: 0 | AA43: 0 | AB43: 0 | AC43: 0 | AD43: 0 | AE43: 0 | AF43: 0 | AG43: 0 | AH43: 0 | AI43: 0 | AJ43: 0 | AK43: 0 | AL43: 0 | AM43: 0 | AN43: 0 | AO43: 0 | AP43: 0 | AQ43: =N42 -> 25.5 | AR43: =AVERAGE(O42,S42,AA42,AH42,AI42,AJ42,AK42,AL42,AM42,AN42,AO42,AP42) -> 0.2727272727 | AS43: =STDEV(O42,S42,AA42,AH42,AI42,AJ42,AK42,AL42,AM42,AN42,AO42,AP42) -> 0.9045340337 | AT43: =COUNT(O42,S42,AA42,AH42,AI42,AJ42,AK42,AL42,AM42,AN42,AO42,AP42) -> 11 | AU43: =AS43/SQRT(AT43) -> 0.2727272727 | AV43: =AVERAGE(Z42,AF42,AG42) -> 0 | AW43: =STDEV(Z42,AF42,AG42) -> 0 | AX43: =COUNT(Z42,AF42,AG42) -> 3 | AY43: =AW43/SQRT(AX43) -> 0 | AZ43: =AVERAGE(P42,U42,W42,AD42) -> 0 | BA43: =STDEV(P42,U42,W42,AD42) -> 0 | BB43: =COUNT(P42,U42,W42,AD42) -> 4 | BC43: =BA43/SQRT(BB43) -> 0 | BD43: =AVERAGE(Q42,T42,X42,AE42) -> 2 | BE43: =STDEV(Q42,T42,X42,AE42) -> 3.366501646 | BF43: =COUNT(Q42,T42,X42,AE42) -> 4 | BG43: =BE43/SQRT(BF43) -> 1.683250823 | BH43: =AVERAGE(R42,V42,Y42,AB42,AC42) -> 0.8 | BI43: =STDEV(R42,V42,Y42,AB42,AC42) -> 1.788854382 | BJ43: =COUNT(R42,V42,Y42,AB42,AC42) -> 5 | BK43: =BI43/SQRT(BJ43) -> 0.8
N44: 28 | O44: 0 | P44: 0 | Q44: 0 | R44: 0 | S44: 0 | T44: 0 | U44: 0 | V44: 0 | W44: 0 | X44: 0 | Y44: 0 | Z44: 6 | AA44: 1 | AB44: 0 | AC44: 0 | AD44: 0 | AE44: 14 | AF44: 0 | AG44: 0 | AH44: 0 | AI44: 0 | AJ44: 0 | AK44: 0 | AL44: 0 | AM44: 0 | AN44: 0 | AO44: 0 | AP44: 0
M45: avg 2 min | N45: =AVERAGE(N43:N44) -> 27.5 | P45: =SUM(P43:P44) -> 0 | Q45: =SUM(Q43:Q44) -> 0 | R45: 0 | S45: 0 | T45: 0 | U45: 0 | V45: 0 | W45: 0 | X45: 0 | Y45: 0 | Z45: 6 | AA45: 1 | AB45: 0 | AC45: 0 | AD45: 0 | AE45: 14 | AF45: 0 | AG45: 0 | AH45: 0 | AI45: 0 | AJ45: 0 | AK45: 0 | AL45: 0 | AM45: 0 | AN45: 0 | AO45: 0 | AP45: 0
N46: 29 | O46: 0 | P46: 2 | Q46: 0 | R46: 0 | S46: 0 | T46: 0 | U46: 0 | V46: 0 | W46: 0 | X46: 0 | Y46: 0 | Z46: 0 | AA46: 0 | AB46: 0 | AC46: 0 | AD46: 0 | AE46: 0 | AF46: 0 | AG46: 0 | AH46: 0 | AI46: 0 | AJ46: 0 | AK46: 0 | AL46: 0 | AM46: 0 | AN46: 0 | AO46: 0 | AP46: 0 | AQ46: =N45 -> 27.5 | AR46: =AVERAGE(O45,S45,AA45,AH45,AI45,AJ45,AK45,AL45,AM45,AN45,AO45,AP45) -> 0.09090909091 | AS46: =STDEV(O45,S45,AA45,AH45,AI45,AJ45,AK45,AL45,AM45,AN45,AO45,AP45) -> 0.3015113446 | AT46: =COUNT(O45,S45,AA45,AH45,AI45,AJ45,AK45,AL45,AM45,AN45,AO45,AP45) -> 11 | AU46: =AS46/SQRT(AT46) -> 0.09090909091 | AV46: =AVERAGE(Z45,AF45,AG45) -> 2 | AW46: =STDEV(Z45,AF45,AG45) -> 3.464101615 | AX46: =COUNT(Z45,AF45,AG45) -> 3 | AY46: =AW46/SQRT(AX46) -> 2 | AZ46: =AVERAGE(P45,U45,W45,AD45) -> 0 | BA46: =STDEV(P45,U45,W45,AD45) -> 0 | BB46: =COUNT(P45,U45,W45,AD45) -> 4 | BC46: =BA46/SQRT(BB46) -> 0 | BD46: =AVERAGE(Q45,T45,X45,AE45) -> 3.5 | BE46: =STDEV(Q45,T45,X45,AE45) -> 7 | BF46: =COUNT(Q45,T45,X45,AE45) -> 4 | BG46: =BE46/SQRT(BF46) -> 3.5 | BH46: =AVERAGE(R45,V45,Y45,AB45,AC45) -> 0 | BI46: =STDEV(R45,V45,Y45,AB45,AC45) -> 0 | BJ46: =COUNT(R45,V45,Y45,AB45,AC45) -> 5 | BK46: =BI46/SQRT(BJ46) -> 0
N47: 30 | O47: 0 | P47: 0 | Q47: 0 | R47: 0 | S47: 0 | T47: 0 | U47: 0 | V47: 0 | W47: 0 | X47: 0 | Y47: 0 | Z47: 0 | AA47: 0 | AB47: 0 | AC47: 0 | AD47: 0 | AE47: 9 | AF47: 0 | AG47: 0 | AH47: 0 | AI47: 0 | AJ47: 0 | AK47: 0 | AL47: 0 | AM47: 0 | AN47: 0 | AO47: 0 | AP47: 0
M48: avg 2 min | N48: =AVERAGE(N46:N47) -> 29.5 | P48: =SUM(P46:P47) -> 2 | Q48: =SUM(Q46:Q47) -> 0 | R48: 0 | S48: 0 | T48: 0 | U48: 0 | V48: 0 | W48: 0 | X48: 0 | Y48: 0 | Z48: 0 | AA48: 0 | AB48: 0 | AC48: 0 | AD48: 0 | AE48: 9 | AF48: 0 | AG48: 0 | AH48: 0 | AI48: 0 | AJ48: 0 | AK48: 0 | AL48: 0 | AM48: 0 | AN48: 0 | AO48: 0 | AP48: 0
AQ49: =N48 -> 29.5 | AR49: =AVERAGE(O48,S48,AA48,AH48,AI48,AJ48,AK48,AL48,AM48,AN48,AO48,AP48) -> 0 | AS49: =STDEV(O48,S48,AA48,AH48,AI48,AJ48,AK48,AL48,AM48,AN48,AO48,AP48) -> 0 | AT49: =COUNT(O48,S48,AA48,AH48,AI48,AJ48,AK48,AL48,AM48,AN48,AO48,AP48) -> 11 | AU49: =AS49/SQRT(AT49) -> 0 | AV49: =AVERAGE(Z48,AF48,AG48) -> 0 | AW49: =STDEV(Z48,AF48,AG48) -> 0 | AX49: =COUNT(Z48,AF48,AG48) -> 3 | AY49: =AW49/SQRT(AX49) -> 0 | AZ49: =AVERAGE(P48,U48,W48,AD48) -> 0.5 | BA49: =STDEV(P48,U48,W48,AD48) -> 1 | BB49: =COUNT(P48,U48,W48,AD48) -> 4 | BC49: =BA49/SQRT(BB49) -> 0.5 | BD49: =AVERAGE(Q48,T48,X48,AE48) -> 2.25 | BE49: =STDEV(Q48,T48,X48,AE48) -> 4.5 | BF49: =COUNT(Q48,T48,X48,AE48) -> 4 | BG49: =BE49/SQRT(BF49) -> 2.25 | BH49: =AVERAGE(R48,V48,Y48,AB48,AC48) -> 0 | BI49: =STDEV(R48,V48,Y48,AB48,AC48) -> 0 | BJ49: =COUNT(R48,V48,Y48,AB48,AC48) -> 5 | BK49: =BI49/SQRT(BJ49) -> 0

Sheet 3b
A1: total number of scratching bouts
A3: dose | B3: 0 | C3: 3 | D3: 10 | E3: 30 | F3: 60
B4: 8 | C4: 31 | D4: 57 | E4: 31 | F4: 61
B5: 0 | C5: 19 | D5: 20 | E5: 50 | F5: 56
B6: 1 | C6: 51 | D6: 106 | E6: 111 | F6: 24
B7: 7 | D7: 89 | E7: 80 | F7: 33
B8: 7 | F8: 31
B9: 0
B10: 6
B11: 15
B12: 3
B13: 21
A15: avg | B15: =AVERAGE(B4:B13) -> 6.8 | C15: =AVERAGE(C4:C13) -> 33.66666667 | D15: 68 | E15: 68 | F15: 41
A16: SEM | B16: =STDEV(B4:B13)/SQRT(COUNT(B4:B13)) -> 2.138535324 | C16: =STDEV(C4:C13)/SQRT(COUNT(C4:C13)) -> 9.333333333 | D16: 18.95169298 | E16: 17.52617091 | F16: 7.341661937
A17: n | B17: =COUNT(B4:B13) -> 10 | C17: =COUNT(C4:C13) -> 3 | D17: =COUNT(D4:D13) -> 4 | E17: =COUNT(E4:E13) -> 4 | F17: =COUNT(F4:F13) -> 5
